[Event "Early-Titled-Tuesday-Blitz-June-18-2024"]
[Site "Chess.com"]
[Date "2024.06.18"]
[Round "3"]
[White "Bilan_Danila"]
[Black "GothamChess"]
[Result "0-1"]
[WhiteElo "2567"]
[BlackElo "2786"]
[TimeControl "180+1"]
[EndTime "8:29:29 PDT"]
[Termination "GothamChess won by resignation"]

1. d4 {[%clk 0:02:56.6]} 1... g6 {[%clk 0:02:56.8]} 2. Nf3 {[%clk 0:02:56]} 2...
Bg7 {[%clk 0:02:56.8]} 3. Bg5 {[%clk 0:02:56.6]} 3... h6 {[%clk 0:02:55.9]} 4.
Bh4 {[%clk 0:02:56.6]} 4... d6 {[%clk 0:02:56]} 5. c3 {[%clk 0:02:56.6]} 5...
Nd7 {[%clk 0:02:53.1]} 6. e4 {[%clk 0:02:55.7]} 6... g5 {[%clk 0:02:51.3]} 7.
Bg3 {[%clk 0:02:55.4]} 7... Ngf6 {[%clk 0:02:52.1]} 8. Nbd2 {[%clk 0:02:55.3]}
8... Nh5 {[%clk 0:02:52.3]} 9. Bc4 {[%clk 0:02:45.1]} 9... e6 {[%clk 0:02:50.8]}
10. a4 {[%clk 0:02:39.6]} 10... a6 {[%clk 0:02:49.5]} 11. Nf1 {[%clk 0:02:32.7]}
11... Ndf6 {[%clk 0:02:47.9]} 12. e5 {[%clk 0:02:24.1]} 12... Nd7 {[%clk
0:02:35.5]} 13. Qe2 {[%clk 0:01:57.9]} 13... d5 {[%clk 0:02:29.1]} 14. Bd3
{[%clk 0:01:53.1]} 14... c5 {[%clk 0:02:29.1]} 15. h4 {[%clk 0:01:42.6]} 15...
g4 {[%clk 0:02:13.1]} 16. N3d2 {[%clk 0:01:33.6]} 16... Nxg3 {[%clk 0:02:09.4]}
17. Nxg3 {[%clk 0:01:31.3]} 17... cxd4 {[%clk 0:01:52.5]} 18. cxd4 {[%clk
0:01:23]} 18... h5 {[%clk 0:01:24.1]} 19. Nxh5 {[%clk 0:01:21.3]} 19... Rxh5
{[%clk 0:01:24]} 20. Qxg4 {[%clk 0:01:20.2]} 20... Nxe5 {[%clk 0:01:24.6]} 21.
dxe5 {[%clk 0:01:00]} 21... Rxe5+ {[%clk 0:01:24.4]} 22. Kf1 {[%clk 0:00:59.8]}
22... Kf8 {[%clk 0:00:52.5]} 23. Nf3 {[%clk 0:00:52.1]} 23... Qf6 {[%clk
0:00:52.6]} 24. Nxe5 {[%clk 0:00:45.1]} 24... Qxe5 {[%clk 0:00:53.5]} 25. h5
{[%clk 0:00:38.2]} 25... Bd7 {[%clk 0:00:47.9]} 26. h6 {[%clk 0:00:34.4]} 26...
Bh8 {[%clk 0:00:46.1]} 27. Re1 {[%clk 0:00:22.3]} 27... Qxb2 {[%clk 0:00:43.4]}
28. g3 {[%clk 0:00:13.3]} 28... Qc3 {[%clk 0:00:42.7]} 29. Qf3 {[%clk
0:00:12.4]} 29... Ke7 {[%clk 0:00:41.3]} 30. h7 {[%clk 0:00:11.8]} 30... Bxa4
{[%clk 0:00:40.9]} 31. Kg2 {[%clk 0:00:11.1]} 31... Bc6 {[%clk 0:00:40.1]} 32.
Qf4 {[%clk 0:00:08.4]} 32... Qxd3 {[%clk 0:00:38.6]} 33. Qh4+ {[%clk 0:00:08.7]}
33... Kd7 {[%clk 0:00:28.6]} 34. Kh2 {[%clk 0:00:06]} 34... Qf3 {[%clk
0:00:28.2]} 35. Rhf1 {[%clk 0:00:04.7]} 35... Bf6 {[%clk 0:00:23]} 36. Qh3
{[%clk 0:00:04.8]} 36... Rh8 {[%clk 0:00:22.3]} 37. Re3 {[%clk 0:00:05.1]} 37...
Qf5 {[%clk 0:00:21.1]} 0-1

[Event "Early-Titled-Tuesday-Blitz-June-18-2024"]
[Site "Chess.com"]
[Date "2024.06.18"]
[Round "3"]
[White "DinaBelenkaya"]
[Black "dennisodessa"]
[Result "0-1"]
[WhiteElo "2323"]
[BlackElo "2588"]
[TimeControl "180+1"]
[EndTime "8:29:32 PDT"]
[Termination "dennisodessa won by resignation"]

1. Nf3 {[%clk 0:02:51.9]} 1... e6 {[%clk 0:02:59.8]} 2. g3 {[%clk 0:02:48.1]}
2... Nf6 {[%clk 0:02:59.5]} 3. Bg2 {[%clk 0:02:47.3]} 3... b6 {[%clk 0:03:00.4]}
4. O-O {[%clk 0:02:47]} 4... Bb7 {[%clk 0:03:00.6]} 5. d3 {[%clk 0:02:47.7]}
5... Be7 {[%clk 0:03:00.9]} 6. e4 {[%clk 0:02:48]} 6... O-O {[%clk 0:03:01.6]}
7. Nbd2 {[%clk 0:02:45.7]} 7... c5 {[%clk 0:03:01.8]} 8. c3 {[%clk 0:02:45.3]}
8... d5 {[%clk 0:02:58.3]} 9. e5 {[%clk 0:02:44.9]} 9... Nfd7 {[%clk 0:02:58.4]}
10. d4 {[%clk 0:02:40.9]} 10... Nc6 {[%clk 0:02:58.4]} 11. Re1 {[%clk
0:02:40.3]} 11... Re8 {[%clk 0:02:56]} 12. Nf1 {[%clk 0:02:35.8]} 12... f6
{[%clk 0:02:54.3]} 13. Bf4 {[%clk 0:02:33]} 13... fxe5 {[%clk 0:02:43.2]} 14.
dxe5 {[%clk 0:02:25.5]} 14... Nf8 {[%clk 0:02:43.4]} 15. h4 {[%clk 0:02:20]}
15... Ng6 {[%clk 0:02:44.3]} 16. Bd2 {[%clk 0:02:17.1]} 16... Qc7 {[%clk
0:02:35.7]} 17. Qe2 {[%clk 0:02:14.6]} 17... h6 {[%clk 0:02:15.5]} 18. h5 {[%clk
0:02:04.3]} 18... Nh8 {[%clk 0:02:15.4]} 19. N1h2 {[%clk 0:02:03]} 19... Rf8
{[%clk 0:02:04.8]} 20. Ng4 {[%clk 0:02:01.6]} 20... Rf5 {[%clk 0:02:05.3]} 21.
Bxh6 {[%clk 0:01:53.8]} 21... Rxh5 {[%clk 0:01:59.3]} 22. Bf4 {[%clk 0:01:52]}
22... Rf8 {[%clk 0:01:56.7]} 23. Qd2 {[%clk 0:01:26.3]} 23... Nf7 {[%clk
0:01:50]} 24. Rad1 {[%clk 0:01:09.5]} 24... Qd8 {[%clk 0:01:32.3]} 25. Qc1
{[%clk 0:01:02.3]} 25... Qe8 {[%clk 0:01:11.6]} 26. Nfh2 {[%clk 0:00:54.9]}
26... Ng5 {[%clk 0:01:09.3]} 27. Bxg5 {[%clk 0:00:48.2]} 27... Bxg5 {[%clk
0:01:10.1]} 28. f4 {[%clk 0:00:47.4]} 28... Be7 {[%clk 0:01:10.2]} 29. Bf3
{[%clk 0:00:45]} 29... Qg6 {[%clk 0:01:04]} 30. Kg2 {[%clk 0:00:43.1]} 30... Bd8
{[%clk 0:00:47.8]} 31. Qd2 {[%clk 0:00:42.9]} 31... Ne7 {[%clk 0:00:47.8]} 32.
Qe2 {[%clk 0:00:43]} 32... Nf5 {[%clk 0:00:47.8]} 33. Rg1 {[%clk 0:00:22]} 33...
Rh8 {[%clk 0:00:43.3]} 34. Qf2 {[%clk 0:00:19.7]} 34... Qf7 {[%clk 0:00:30.4]}
35. c4 {[%clk 0:00:20.2]} 35... d4 {[%clk 0:00:30.5]} 36. Bxb7 {[%clk
0:00:19.8]} 36... Qxb7+ {[%clk 0:00:31.4]} 37. Qf3 {[%clk 0:00:19.3]} 37... Ne3+
{[%clk 0:00:26.4]} 38. Nxe3 {[%clk 0:00:18.9]} 38... Rxh2+ {[%clk 0:00:27]} 39.
Kxh2 {[%clk 0:00:16.5]} 39... Qxf3 {[%clk 0:00:27.8]} 40. Ng2 {[%clk 0:00:15.2]}
40... Qh5+ {[%clk 0:00:25.8]} 41. Nh4 {[%clk 0:00:13.9]} 41... Bxh4 {[%clk
0:00:26.2]} 42. gxh4 {[%clk 0:00:14.6]} 42... Qxh4+ {[%clk 0:00:27.1]} 43. Kg2
{[%clk 0:00:15.2]} 43... Rxf4 {[%clk 0:00:27.6]} 0-1

[Event "Early-Titled-Tuesday-Blitz-June-18-2024"]
[Site "Chess.com"]
[Date "2024.06.18"]
[Round "3"]
[White "KorolDimitriy75"]
[Black "Ash15K"]
[Result "1-0"]
[WhiteElo "2520"]
[BlackElo "2304"]
[TimeControl "180+1"]
[EndTime "8:29:33 PDT"]
[Termination "KorolDimitriy75 won by checkmate"]

1. d4 {[%clk 0:03:00.9]} 1... Nf6 {[%clk 0:02:58.1]} 2. c4 {[%clk 0:03:00.6]}
2... e6 {[%clk 0:02:56.6]} 3. Nc3 {[%clk 0:03:00.6]} 3... Bb4 {[%clk 0:02:56.5]}
4. Qc2 {[%clk 0:03:00.8]} 4... O-O {[%clk 0:02:54.5]} 5. e4 {[%clk 0:03:00.9]}
5... d5 {[%clk 0:02:53.2]} 6. cxd5 {[%clk 0:03:01.8]} 6... exd5 {[%clk
0:02:52.9]} 7. e5 {[%clk 0:03:02.4]} 7... Ne4 {[%clk 0:02:52.2]} 8. Bd3 {[%clk
0:03:02.9]} 8... f5 {[%clk 0:02:49.7]} 9. Ne2 {[%clk 0:03:02.7]} 9... c5 {[%clk
0:02:47.9]} 10. O-O {[%clk 0:03:01.9]} 10... Bxc3 {[%clk 0:02:46.8]} 11. bxc3
{[%clk 0:02:21.5]} 11... c4 {[%clk 0:02:46]} 12. Bxe4 {[%clk 0:02:20.3]} 12...
fxe4 {[%clk 0:02:45.9]} 13. Ba3 {[%clk 0:02:19]} 13... Rf7 {[%clk 0:02:39.5]}
14. Qd2 {[%clk 0:01:48.7]} 14... Nc6 {[%clk 0:02:27.6]} 15. Bd6 {[%clk
0:01:26.2]} 15... Qh4 {[%clk 0:02:03.9]} 16. Qe3 {[%clk 0:01:14]} 16... Bg4
{[%clk 0:01:30.4]} 17. f3 {[%clk 0:00:20.2]} 17... exf3 {[%clk 0:01:17.4]} 18.
gxf3 {[%clk 0:00:21.1]} 18... Bh3 {[%clk 0:01:07.5]} 19. Rf2 {[%clk 0:00:21.5]}
19... Ne7 {[%clk 0:01:01.2]} 20. Ng3 {[%clk 0:00:17.1]} 20... Nf5 {[%clk
0:00:57.1]} 21. Nxf5 {[%clk 0:00:16.1]} 21... Rxf5 {[%clk 0:00:56.1]} 22. Kh1
{[%clk 0:00:16.2]} 22... g5 {[%clk 0:00:39.4]} 23. Rg1 {[%clk 0:00:15.2]} 23...
g4 {[%clk 0:00:33]} 24. Rg3 {[%clk 0:00:12.5]} 24... Kh8 {[%clk 0:00:16.5]} 25.
fxg4 {[%clk 0:00:11.6]} 25... Rxf2 {[%clk 0:00:13.6]} 26. Qxf2 {[%clk
0:00:12.5]} 26... Bxg4 {[%clk 0:00:13.1]} 27. Qf4 {[%clk 0:00:11.3]} 27... Rg8
{[%clk 0:00:10.9]} 28. e6 {[%clk 0:00:11.5]} 28... h5 {[%clk 0:00:03.2]} 29.
Be5+ {[%clk 0:00:11.7]} 29... Kh7 {[%clk 0:00:03.6]} 30. Qf7+ {[%clk 0:00:10.6]}
30... Kh6 {[%clk 0:00:04]} 31. Qxg8 {[%clk 0:00:10.3]} 31... Bh3 {[%clk
0:00:02.6]} 32. Qg7# {[%clk 0:00:10.3]} 1-0

[Event "Early-Titled-Tuesday-Blitz-June-18-2024"]
[Site "Chess.com"]
[Date "2024.06.18"]
[Round "3"]
[White "GMG"]
[Black "evgchess5"]
[Result "1/2-1/2"]
[WhiteElo "2728"]
[BlackElo "2932"]
[TimeControl "180+1"]
[EndTime "8:29:34 PDT"]
[Termination "Game drawn by repetition"]

1. d4 {[%clk 0:03:00.9]} 1... Nf6 {[%clk 0:02:58]} 2. g3 {[%clk 0:03:01]} 2...
e6 {[%clk 0:02:56.8]} 3. Bg2 {[%clk 0:03:00.9]} 3... c5 {[%clk 0:02:52.7]} 4.
Nf3 {[%clk 0:03:00]} 4... cxd4 {[%clk 0:02:37.3]} 5. O-O {[%clk 0:02:59.3]} 5...
a6 {[%clk 0:02:31.8]} 6. Nxd4 {[%clk 0:02:49.2]} 6... Qc7 {[%clk 0:02:31.7]} 7.
b3 {[%clk 0:02:34.5]} 7... d5 {[%clk 0:02:31.7]} 8. c4 {[%clk 0:02:19.5]} 8...
dxc4 {[%clk 0:02:31.7]} 9. Na3 {[%clk 0:02:14.5]} 9... e5 {[%clk 0:02:23.2]} 10.
Nf3 {[%clk 0:01:43.6]} 10... c3 {[%clk 0:02:19.9]} 11. Nc4 {[%clk 0:01:37.8]}
11... Nc6 {[%clk 0:02:18.6]} 12. Be3 {[%clk 0:01:32.3]} 12... Be6 {[%clk
0:02:07.6]} 13. Bb6 {[%clk 0:01:26.6]} 13... Qb8 {[%clk 0:02:01.8]} 14. Rc1
{[%clk 0:01:03.9]} 14... Bxc4 {[%clk 0:01:37.5]} 15. bxc4 {[%clk 0:01:04.8]}
15... Bb4 {[%clk 0:01:35.1]} 16. a3 {[%clk 0:00:55.2]} 16... Bxa3 {[%clk
0:01:35.1]} 17. Rxc3 {[%clk 0:00:55.4]} 17... Bb4 {[%clk 0:01:35.4]} 18. Rb3
{[%clk 0:00:43.1]} 18... O-O {[%clk 0:01:35]} 19. Nxe5 {[%clk 0:00:38.4]} 19...
Qxe5 {[%clk 0:01:27.5]} 20. Bxc6 {[%clk 0:00:38.4]} 20... bxc6 {[%clk
0:01:27.5]} 21. Rxb4 {[%clk 0:00:38]} 21... Rfe8 {[%clk 0:01:25.7]} 22. Qa4
{[%clk 0:00:30.1]} 22... Qe6 {[%clk 0:01:12.6]} 23. Rb3 {[%clk 0:00:22.8]} 23...
Ne4 {[%clk 0:01:07.9]} 24. Re3 {[%clk 0:00:20.6]} 24... Qf6 {[%clk 0:01:06.1]}
25. Qc2 {[%clk 0:00:14.5]} 25... Qg6 {[%clk 0:00:57.2]} 26. Rd1 {[%clk
0:00:12.3]} 26... a5 {[%clk 0:00:45.2]} 27. f3 {[%clk 0:00:12.1]} 27... Nf6
{[%clk 0:00:42.2]} 28. Qxg6 {[%clk 0:00:12.1]} 28... hxg6 {[%clk 0:00:42.2]} 29.
Rxe8+ {[%clk 0:00:10.6]} 29... Nxe8 {[%clk 0:00:41.6]} 30. Bc5 {[%clk
0:00:05.6]} 30... a4 {[%clk 0:00:41.2]} 31. Ba3 {[%clk 0:00:03.3]} 31... Rb8
{[%clk 0:00:37.2]} 32. Kf2 {[%clk 0:00:02.7]} 32... f6 {[%clk 0:00:19.5]} 33.
Rd7 {[%clk 0:00:03.1]} 33... Rb3 {[%clk 0:00:18.5]} 34. Rd8 {[%clk 0:00:03.5]}
34... Kf7 {[%clk 0:00:17.7]} 35. Rd7+ {[%clk 0:00:04]} 35... Kg8 {[%clk
0:00:17.9]} 36. Rd8 {[%clk 0:00:04.6]} 36... Kf7 {[%clk 0:00:16.8]} 37. Rd7+
{[%clk 0:00:05.1]} 37... Kg8 {[%clk 0:00:16.6]} 1/2-1/2

[Event "Early-Titled-Tuesday-Blitz-June-18-2024"]
[Site "Chess.com"]
[Date "2024.06.18"]
[Round "3"]
[White "xakevicius91"]
[Black "Rdeux42"]
[Result "1-0"]
[WhiteElo "2634"]
[BlackElo "2429"]
[TimeControl "180+1"]
[EndTime "8:29:34 PDT"]
[Termination "xakevicius91 won by resignation"]

1. e4 {[%clk 0:03:00.9]} 1... c5 {[%clk 0:02:59.5]} 2. Nf3 {[%clk 0:03:00.7]}
2... d6 {[%clk 0:02:59.2]} 3. Bc4 {[%clk 0:02:59.3]} 3... Nf6 {[%clk 0:02:59.3]}
4. Qe2 {[%clk 0:02:56.7]} 4... Nc6 {[%clk 0:02:38.8]} 5. c3 {[%clk 0:02:55.1]}
5... Bg4 {[%clk 0:02:38.2]} 6. h3 {[%clk 0:02:52.6]} 6... Bxf3 {[%clk 0:02:36]}
7. Qxf3 {[%clk 0:02:53.1]} 7... e6 {[%clk 0:02:35.9]} 8. Qe2 {[%clk 0:02:50.1]}
8... Be7 {[%clk 0:02:36.2]} 9. Bb3 {[%clk 0:02:49.2]} 9... O-O {[%clk
0:02:35.6]} 10. O-O {[%clk 0:02:48.8]} 10... d5 {[%clk 0:02:34]} 11. e5 {[%clk
0:02:48.7]} 11... Nd7 {[%clk 0:02:33.3]} 12. f4 {[%clk 0:02:46.6]} 12... c4
{[%clk 0:02:26.3]} 13. Bc2 {[%clk 0:02:45.9]} 13... Nc5 {[%clk 0:02:09]} 14. d4
{[%clk 0:02:39.6]} 14... cxd3 {[%clk 0:02:07]} 15. Bxd3 {[%clk 0:02:39.9]} 15...
Nxd3 {[%clk 0:02:06.4]} 16. Qxd3 {[%clk 0:02:40.8]} 16... Qb6+ {[%clk
0:02:03.4]} 17. Kh2 {[%clk 0:02:39.1]} 17... Rad8 {[%clk 0:02:02.4]} 18. Nd2
{[%clk 0:02:36.5]} 18... d4 {[%clk 0:02:01.5]} 19. Nf3 {[%clk 0:02:26.8]} 19...
dxc3 {[%clk 0:01:57.8]} 20. Qxc3 {[%clk 0:02:26.7]} 20... Bb4 {[%clk 0:01:53.3]}
21. Qb3 {[%clk 0:02:24.9]} 21... Bc5 {[%clk 0:01:37.6]} 22. Bd2 {[%clk
0:02:11.3]} 22... Qxb3 {[%clk 0:01:35.1]} 23. axb3 {[%clk 0:02:12.2]} 23... a6
{[%clk 0:01:30.2]} 24. Bc3 {[%clk 0:02:12.4]} 24... Rd3 {[%clk 0:01:29.1]} 25.
Rfd1 {[%clk 0:02:10.8]} 25... Rfd8 {[%clk 0:01:29.6]} 26. Rxd3 {[%clk
0:02:10.2]} 26... Rxd3 {[%clk 0:01:30.5]} 27. Rc1 {[%clk 0:01:44.9]} 27... Be3
{[%clk 0:01:26.8]} 28. Re1 {[%clk 0:01:42.6]} 28... Bxf4+ {[%clk 0:01:25.6]} 29.
g3 {[%clk 0:01:43.1]} 29... Be3 {[%clk 0:01:18.8]} 30. Kg2 {[%clk 0:01:42.3]}
30... h6 {[%clk 0:01:10]} 31. Re2 {[%clk 0:01:34.4]} 31... Bc5 {[%clk 0:00:56]}
32. h4 {[%clk 0:01:29.5]} 32... Nb4 {[%clk 0:00:45.8]} 33. Ne1 {[%clk
0:01:24.7]} 33... Rd1 {[%clk 0:00:40.2]} 34. Kf3 {[%clk 0:01:22.7]} 34... Nd5
{[%clk 0:00:37.9]} 35. Bd2 {[%clk 0:01:17.9]} 35... Bd4 {[%clk 0:00:30.3]} 36.
Nd3 {[%clk 0:01:14]} 36... f5 {[%clk 0:00:22]} 37. exf6 {[%clk 0:01:13.4]} 37...
Bxf6 {[%clk 0:00:20.2]} 38. Nf2 {[%clk 0:01:05.7]} 38... Rb1 {[%clk 0:00:19.5]}
39. Rxe6 {[%clk 0:01:03.3]} 39... Rxb2 {[%clk 0:00:19.9]} 40. Ne4 {[%clk
0:01:00.8]} 40... Rxb3+ {[%clk 0:00:18.8]} 41. Ke2 {[%clk 0:01:00.8]} 41... Kf7
{[%clk 0:00:19.7]} 42. Rd6 {[%clk 0:00:58.6]} 42... Nc3+ {[%clk 0:00:19.8]} 43.
Bxc3 {[%clk 0:00:52.5]} 43... Bxc3 {[%clk 0:00:20.7]} 44. Rd7+ {[%clk
0:00:51.4]} 44... Kg6 {[%clk 0:00:20.2]} 45. g4 {[%clk 0:00:45.5]} 45... h5
{[%clk 0:00:19.6]} 46. Rd6+ {[%clk 0:00:36.8]} 46... Kf7 {[%clk 0:00:19.3]} 47.
gxh5 {[%clk 0:00:34.2]} 47... Bf6 {[%clk 0:00:17.7]} 48. Rd7+ {[%clk 0:00:32.2]}
48... Ke6 {[%clk 0:00:17.9]} 49. Nc5+ {[%clk 0:00:32.1]} 1-0

[Event "Early-Titled-Tuesday-Blitz-June-18-2024"]
[Site "Chess.com"]
[Date "2024.06.18"]
[Round "3"]
[White "FMalexhdez"]
[Black "DishonorOnYourCow"]
[Result "0-1"]
[WhiteElo "2295"]
[BlackElo "2523"]
[TimeControl "180+1"]
[EndTime "8:29:34 PDT"]
[Termination "DishonorOnYourCow won on time"]

1. e4 {[%clk 0:03:00.9]} 1... c5 {[%clk 0:02:57.5]} 2. Nf3 {[%clk 0:03:00.8]}
2... d6 {[%clk 0:02:58.1]} 3. d4 {[%clk 0:03:00.8]} 3... cxd4 {[%clk 0:02:58.7]}
4. Nxd4 {[%clk 0:03:01.2]} 4... Nf6 {[%clk 0:02:59.3]} 5. Nc3 {[%clk 0:03:01.4]}
5... a6 {[%clk 0:02:59.9]} 6. h3 {[%clk 0:02:59.1]} 6... e5 {[%clk 0:02:59.6]}
7. Nde2 {[%clk 0:02:57.7]} 7... h5 {[%clk 0:02:59.7]} 8. g3 {[%clk 0:02:57.9]}
8... Be6 {[%clk 0:02:51.6]} 9. Bg2 {[%clk 0:02:57.9]} 9... Be7 {[%clk
0:02:51.2]} 10. O-O {[%clk 0:02:56.3]} 10... Nc6 {[%clk 0:02:45.7]} 11. Be3
{[%clk 0:02:55]} 11... b5 {[%clk 0:02:37.2]} 12. a3 {[%clk 0:02:54.8]} 12... Qc7
{[%clk 0:02:22.4]} 13. Nd5 {[%clk 0:02:54.7]} 13... Bxd5 {[%clk 0:02:20.3]} 14.
exd5 {[%clk 0:02:55]} 14... Nb8 {[%clk 0:02:20]} 15. Nc3 {[%clk 0:02:47.9]}
15... Nbd7 {[%clk 0:02:18]} 16. f4 {[%clk 0:02:47.7]} 16... h4 {[%clk 0:02:10]}
17. g4 {[%clk 0:02:43.7]} 17... exf4 {[%clk 0:02:03.3]} 18. Bxf4 {[%clk
0:02:42.7]} 18... O-O {[%clk 0:01:48.1]} 19. g5 {[%clk 0:02:41.9]} 19... Nh7
{[%clk 0:01:47.8]} 20. Qh5 {[%clk 0:02:31.2]} 20... Ne5 {[%clk 0:01:44.2]} 21.
Be4 {[%clk 0:02:07.6]} 21... g6 {[%clk 0:01:37.8]} 22. Qxh4 {[%clk 0:02:00.7]}
22... Qc5+ {[%clk 0:01:34.6]} 23. Kh1 {[%clk 0:01:51.4]} 23... b4 {[%clk
0:01:20.8]} 24. axb4 {[%clk 0:01:44.4]} 24... Qxb4 {[%clk 0:01:21.7]} 25. Qg3
{[%clk 0:00:52.6]} 25... Rac8 {[%clk 0:00:44.8]} 26. Bg2 {[%clk 0:00:09.5]}
26... Qxb2 {[%clk 0:00:37.1]} 27. Ne4 {[%clk 0:00:06.2]} 27... Rxc2 {[%clk
0:00:22.6]} 28. h4 {[%clk 0:00:06]} 28... Nd3 {[%clk 0:00:11.6]} 29. Rab1 {[%clk
0:00:04.9]} 29... Qd4 {[%clk 0:00:09.5]} 30. Nf6+ {[%clk 0:00:03.3]} 30... Nxf6
{[%clk 0:00:08.9]} 31. gxf6 {[%clk 0:00:03.6]} 31... Bxf6 {[%clk 0:00:08.9]} 32.
Be3 {[%clk 0:00:02.8]} 32... Qe5 {[%clk 0:00:08.1]} 33. Qxe5 {[%clk 0:00:01.9]}
33... Bxe5 {[%clk 0:00:09]} 0-1

[Event "Early-Titled-Tuesday-Blitz-June-18-2024"]
[Site "Chess.com"]
[Date "2024.06.18"]
[Round "3"]
[White "VaglioSagan"]
[Black "Forge13"]
[Result "0-1"]
[WhiteElo "2484"]
[BlackElo "2699"]
[TimeControl "180+1"]
[EndTime "8:29:35 PDT"]
[Termination "Forge13 won by resignation"]

1. d4 {[%clk 0:02:59.6]} 1... Nf6 {[%clk 0:02:59.3]} 2. c4 {[%clk 0:02:58]} 2...
d6 {[%clk 0:02:59.6]} 3. Nc3 {[%clk 0:02:53.5]} 3... e5 {[%clk 0:02:57.4]} 4.
dxe5 {[%clk 0:02:51.4]} 4... dxe5 {[%clk 0:02:58.3]} 5. Qxd8+ {[%clk 0:02:51.1]}
5... Kxd8 {[%clk 0:02:59.2]} 6. Bg5 {[%clk 0:02:50.7]} 6... Be7 {[%clk
0:02:56.7]} 7. O-O-O+ {[%clk 0:02:07.9]} 7... Nfd7 {[%clk 0:02:56.4]} 8. Bxe7+
{[%clk 0:01:59.2]} 8... Kxe7 {[%clk 0:02:57.3]} 9. Nf3 {[%clk 0:01:54.9]} 9...
c6 {[%clk 0:02:55.9]} 10. e4 {[%clk 0:01:47]} 10... f6 {[%clk 0:02:54.6]} 11.
Bd3 {[%clk 0:01:45.6]} 11... a5 {[%clk 0:02:54]} 12. h3 {[%clk 0:01:43.7]} 12...
Na6 {[%clk 0:02:49.3]} 13. Nh4 {[%clk 0:01:34.6]} 13... Nb6 {[%clk 0:02:46.4]}
14. Be2 {[%clk 0:01:08]} 14... g6 {[%clk 0:02:38.3]} 15. g4 {[%clk 0:01:05.8]}
15... Nc5 {[%clk 0:02:33.8]} 16. Ng2 {[%clk 0:01:05]} 16... Be6 {[%clk
0:02:31.9]} 17. Ne3 {[%clk 0:01:05.5]} 17... Nba4 {[%clk 0:02:17.6]} 18. Nxa4
{[%clk 0:00:57.4]} 18... Nxa4 {[%clk 0:02:18.5]} 19. h4 {[%clk 0:00:51.7]} 19...
h6 {[%clk 0:02:14]} 20. g5 {[%clk 0:00:49]} 20... fxg5 {[%clk 0:02:08.7]} 21.
hxg5 {[%clk 0:00:49.9]} 21... h5 {[%clk 0:02:09.3]} 22. Ng2 {[%clk 0:00:43.1]}
22... Nc5 {[%clk 0:02:08.2]} 23. f3 {[%clk 0:00:43.1]} 23... Rhd8 {[%clk
0:02:01.2]} 24. Nh4 {[%clk 0:00:38.5]} 24... Bf7 {[%clk 0:02:01.3]} 25. Kc2
{[%clk 0:00:36.6]} 25... Ne6 {[%clk 0:02:01]} 26. Rxd8 {[%clk 0:00:18.4]} 26...
Rxd8 {[%clk 0:02:01.9]} 27. Bd1 {[%clk 0:00:13.5]} 27... Nxg5 {[%clk 0:01:58.6]}
28. Rg1 {[%clk 0:00:13.9]} 28... Kf6 {[%clk 0:01:58.7]} 29. b3 {[%clk
0:00:13.4]} 29... Ne6 {[%clk 0:01:58.2]} 30. Kc1 {[%clk 0:00:12.9]} 30... Nf4
{[%clk 0:01:58.2]} 31. Ng2 {[%clk 0:00:13.5]} 31... Nxg2 {[%clk 0:01:55.5]} 32.
Rxg2 {[%clk 0:00:14.4]} 32... g5 {[%clk 0:01:53.3]} 33. a3 {[%clk 0:00:14.6]}
33... a4 {[%clk 0:01:43.7]} 34. Kb2 {[%clk 0:00:12.5]} 34... axb3 {[%clk
0:01:43.6]} 35. Bxb3 {[%clk 0:00:13]} 35... Rd3 {[%clk 0:01:42.1]} 36. a4 {[%clk
0:00:13.2]} 36... Rxf3 {[%clk 0:01:41]} 37. Rd2 {[%clk 0:00:13.5]} 37... Ke7
{[%clk 0:01:39]} 38. a5 {[%clk 0:00:13.4]} 38... g4 {[%clk 0:01:36.8]} 39. Bd1
{[%clk 0:00:13.8]} 39... Re3 {[%clk 0:01:36.4]} 40. c5 {[%clk 0:00:08.6]} 40...
Rxe4 {[%clk 0:01:32.9]} 41. Kc3 {[%clk 0:00:09.1]} 41... h4 {[%clk 0:01:30.2]}
42. Rb2 {[%clk 0:00:09.2]} 42... Rc4+ {[%clk 0:01:27.2]} 43. Kd3 {[%clk
0:00:09.6]} 43... Rd4+ {[%clk 0:01:20.8]} 44. Ke2 {[%clk 0:00:10.1]} 44... g3
{[%clk 0:01:18.2]} 45. Rxb7+ {[%clk 0:00:10.2]} 45... Kf6 {[%clk 0:01:18.9]} 46.
a6 {[%clk 0:00:07.9]} 46... Bh5+ {[%clk 0:01:19.1]} 47. Ke3 {[%clk 0:00:08]}
47... Bxd1 {[%clk 0:01:16.3]} 48. a7 {[%clk 0:00:08]} 48... Ra4 {[%clk
0:01:16.9]} 49. Rb6 {[%clk 0:00:08.3]} 49... Rxa7 {[%clk 0:01:16.9]} 50. Rxc6+
{[%clk 0:00:08.9]} 50... Kf5 {[%clk 0:01:17.5]} 51. Rh6 {[%clk 0:00:09.2]} 51...
Kg4 {[%clk 0:01:16.7]} 52. Rg6+ {[%clk 0:00:09.6]} 52... Kh3 {[%clk 0:01:17]}
53. c6 {[%clk 0:00:10.4]} 53... Rc7 {[%clk 0:01:16.5]} 54. Kd2 {[%clk
0:00:10.5]} 54... Ba4 {[%clk 0:01:16.6]} 55. Ke3 {[%clk 0:00:10.4]} 55... Bxc6
{[%clk 0:01:17.2]} 56. Rg5 {[%clk 0:00:09.2]} 56... Rc8 {[%clk 0:01:11.6]} 0-1